bitfinex/quotes_BTCUSD_20251001
["timestamp","ask_amount","ask_price","bid_price","bid_amount"]
[1759300428351,0.35228016,114410.0,114400.0,0.65719096]
[1759300428559,0.35734016,114410.0,114400.0,0.65719096]
[1759300431355,0.35228016,114410.0,114400.0,0.65719096]
[1759300431791,0.35429016,114410.0,114400.0,0.08831096]
[1759300432019,0.35738016,114410.0,114400.0,0.79227096]
[1759300432849,0.35228016,114410.0,114400.0,0.79227096]
[1759300433076,0.35429016,114410.0,114400.0,0.79227096]
[1759300433257,0.35738016,114410.0,114400.0,0.79227096]
[1759300436744,0.35738016,114410.0,114400.0,0.96709613]
[1759300436745,0.32212826,114410.0,114400.0,0.96709613]
[1759300437545,0.12107924,114410.0,114400.0,0.26313613]
[1759300437748,0.12107924,114410.0,114400.0,1.33065613]
[1759300437749,0.29588913,114410.0,114400.0,1.33065613]
[1759300438169,0.12107924,114410.0,114400.0,1.33065613]
[1759300438331,0.11294471,114410.0,114400.0,1.33065613]
[1759300438550,0.2877546,114410.0,114400.0,1.33065613]
[1759300438946,0.12294471,114410.0,114400.0,1.34665613]
[1759300439399,0.12294471,114410.0,114400.0,0.27913613]
[1759300439579,0.12294471,114410.0,114400.0,1.34665613]
[1759300439771,0.2977546,114410.0,114400.0,0.27913613]
[1759300439981,0.2977546,114410.0,114400.0,1.34665613]
[1759300440344,0.12294471,114410.0,114400.0,1.34665613]
[1759300440921,0.2977546,114410.0,114400.0,1.34665613]
[1759300441123,0.12294471,114410.0,114400.0,1.34665613]
[1759300441329,0.2977546,114410.0,114400.0,1.34665613]
[1759300441580,0.2977546,114410.0,114400.0,0.27913613]
[1759300441793,0.2977546,114410.0,114400.0,0.89213613]
[1759300442003,0.2977546,114410.0,114400.0,1.34661613]
[1759300442230,0.12294471,114410.0,114400.0,1.34661613]
[1759300442502,0.2977546,114410.0,114400.0,1.34661613]
[1759300444573,0.12294471,114410.0,114400.0,1.34653613]
[1759300445738,0.12294471,114410.0,114400.0,1.25565613]
[1759300446057,0.12294471,114410.0,114400.0,1.34653613]
[1759300446256,0.2977546,114410.0,114400.0,0.27913613]
[1759300446456,0.2977546,114410.0,114400.0,1.34653613]
[1759300446986,0.2977546,114410.0,114400.0,0.27913613]
[1759300447173,0.2977546,114410.0,114400.0,1.34653613]
[1759300447344,0.12294471,114410.0,114400.0,1.34653613]
[1759300448550,0.2977546,114410.0,114400.0,0.27913613]
[1759300448770,0.2977546,114410.0,114400.0,1.34649613]
[1759300450909,0.12294471,114410.0,114400.0,1.34649613]
[1759300451061,0.2977546,114410.0,114400.0,1.34649613]
[1759300451916,0.12294471,114410.0,114400.0,1.34649613]
[1759300452339,0.2977546,114410.0,114400.0,1.34649613]
[1759300453930,0.2977546,114410.0,114400.0,0.27913613]
[1759300454073,0.2977546,114410.0,114400.0,1.34649613]
[1759300454470,0.2997646,114410.0,114400.0,0.27913613]
[1759300454679,0.3028546,114410.0,114400.0,1.34649613]
[1759300454864,0.3028546,114410.0,114400.0,0.27913613]
[1759300455011,0.3028546,114410.0,114400.0,1.34645613]
[1759300457637,0.3028546,114410.0,114400.0,0.10431096]
[1759300457932,0.3028546,114410.0,114400.0,0.45444]
[1759300458963,0.3028546,114410.0,114400.0,0.62926517]
[1759300459163,0.3028546,114410.0,114400.0,0.87858517]
[1759300459648,0.3028546,114410.0,114400.0,0.70376]
[1759300459859,0.3028546,114410.0,114390.0,0.09423525]
[1759300460072,0.21037913,114410.0,114400.0,0.70376]
[1759300460279,0.2997646,114410.0,114400.0,0.70376]
[1759300460486,0.2997646,114410.0,114390.0,0.11785525]
[1759300460713,0.20037913,114410.0,114400.0,0.70376]
[1759300460929,0.20037913,114410.0,114390.0,0.11785525]
[1759300461146,0.20037913,114410.0,114400.0,0.70376]
[1759300461588,0.2897646,114410.0,114400.0,0.70376]
[1759300461802,0.2930046,114410.0,114400.0,0.70376]
[1759300462217,0.2930046,114410.0,114400.0,0.87858517]
[1759300462412,0.3120046,114410.0,114400.0,0.87858517]
[1759300463158,0.3220046,114410.0,114400.0,0.87858517]
[1759300463493,0.17482517,114400.0,114390.0,0.04985601]
[1759300463714,0.17484045,114390.0,114380.0,0.17485498]
[1759300463954,0.2756045,114400.0,114390.0,0.45444]
[1759300463955,0.17482517,114400.0,114390.0,0.45444]
[1759300464155,0.18297794,114400.0,114390.0,0.45444]
[1759300464384,0.17484843,114390.0,114380.0,0.02445]
[1759300464626,0.17808843,114390.0,114370.0,0.17485772]
[1759300464846,0.20112843,114390.0,114370.0,0.19930772]
[1759300465073,0.21112843,114390.0,114380.0,0.17485574]
[1759300465273,0.3025739,114390.0,114380.0,0.17485574]
[1759300465505,0.3025739,114390.0,114380.0,0.42413574]
[1759300465702,0.2925739,114390.0,114380.0,0.24928]
[1759300466010,0.2985739,114390.0,114380.0,0.24928]
[1759300466350,0.2925739,114390.0,114380.0,0.24928]
[1759300466573,0.3025739,114390.0,114380.0,0.24928]
[1759300466761,0.3125739,114390.0,114380.0,1.06728]
[1759300467147,0.3125739,114390.0,114380.0,1.24213574]
[1759300469381,0.17485574,114380.0,114370.0,0.19930772]
[1759300469625,0.26424121,114380.0,114370.0,0.78769772]
[1759300469845,0.29258121,114380.0,114370.0,1.24213772]
[1759300470671,0.29858121,114380.0,114370.0,1.24213772]
[1759300470831,0.29258121,114380.0,114370.0,1.15125772]
[1759300471061,0.29258121,114380.0,114370.0,1.24213772]
[1759300471262,0.29858121,114380.0,114370.0,1.24213772]
[1759300472356,0.29534121,114380.0,114370.0,1.24213772]
[1759300472536,0.29858121,114380.0,114370.0,1.24213772]
[1759300472756,0.29858121,114380.0,114360.0,0.38917896]
[1759300472963,0.08938547,114370.0,114360.0,0.70293632]
[1759300473199,0.09144547,114370.0,114360.0,1.74576632]
[1759300473424,0.11772547,114370.0,114360.0,1.74576632]
[1759300473634,0.11772547,114370.0,114360.0,1.49648632]
[1759300473848,0.11772547,114370.0,114360.0,0.67848632]
[1759300474278,0.11772547,114370.0,114360.0,1.80870417]
[1759300474935,0.12048547,114370.0,114360.0,1.80870417]
[1759300475356,0.11242547,114370.0,114360.0,1.74584632]
[1759300475907,0.11842547,114370.0,114360.0,1.74584632]
[1759300478160,0.11842547,114370.0,114360.0,2.00816632]
[1759300483245,0.11842547,114370.0,114360.0,2.07102417]
[1759300495277,0.11842547,114370.0,114360.0,2.00816632]
[1759300497964,0.11842547,114370.0,114360.0,10.00816632]
[1759300498180,0.11842547,114370.0,114360.0,10.08678048]
[1759300500504,0.02904,114370.0,114360.0,10.03647554]
[1759300500717,0.24776852,114410.0,114390.0,0.17482662]
[1759300500926,0.26932064,114400.0,114390.0,0.43710045]
[1759300501158,0.26932064,114400.0,114390.0,1.52888045]
[1759300501367,0.09449547,114400.0,114390.0,1.52888045]
[1759300501581,0.09135547,114400.0,114390.0,1.52888045]
[1759300501782,0.09135547,114400.0,114390.0,0.46160045]
[1759300501977,0.09135547,114400.0,114390.0,1.52888045]
[1759300502207,0.09449547,114400.0,114390.0,1.52888045]
[1759300502617,0.09449547,114400.0,114390.0,0.46860045]
[1759300502830,0.29834064,114400.0,114390.0,0.46860045]
[1759300503016,0.29834064,114400.0,114390.0,1.52884045]
[1759300503228,0.30334064,114400.0,114390.0,1.53584045]
[1759300503433,0.30334064,114400.0,114390.0,1.08136045]
[1759300503644,0.12851547,114400.0,114390.0,1.53584045]
[1759300503856,0.12851547,114400.0,114390.0,0.46860045]
[1759300504063,0.11751547,114400.0,114390.0,1.52884045]
[1759300504391,0.12751547,114400.0,114390.0,1.53284045]
[1759300505250,0.12240547,114400.0,114390.0,1.53284045]
[1759300505457,0.13140547,114400.0,114390.0,1.53584045]
[1759300505671,0.13140547,114400.0,114390.0,0.46860045]
[1759300505884,0.13337547,114400.0,114390.0,1.53584045]
[1759300506316,0.11240547,114400.0,114390.0,1.52884045]
[1759300506527,0.11740547,114400.0,114390.0,1.53284045]
[1759300506752,0.11937547,114400.0,114390.0,0.46560045]
[1759300506953,0.12251547,114400.0,114390.0,1.53284045]
[1759300507111,0.11751547,114400.0,114390.0,1.52884045]
[1759300507336,0.12351547,114400.0,114390.0,1.53284045]
[1759300508504,0.12351547,114400.0,114390.0,1.07832045]
[1759300508738,0.12351547,114400.0,114390.0,1.53280045]
[1759300509219,0.12037547,114400.0,114390.0,1.53280045]
[1759300509978,0.12351547,114400.0,114390.0,1.07828045]
[1759300510196,0.12351547,114400.0,114390.0,1.53272045]
[1759300511067,0.11840547,114400.0,114390.0,1.53272045]
[1759300516330,0.12351547,114400.0,114390.0,1.53272045]
[1759300517480,0.12351547,114400.0,114390.0,0.46560045]
[1759300517632,0.12351547,114400.0,114390.0,1.44180045]
[1759300517828,0.12351547,114400.0,114390.0,1.53268045]
[1759300522111,0.12044547,114400.0,114390.0,1.53268045]
[1759300522236,0.12342547,114400.0,114390.0,1.53268045]
[1759300523038,0.12138547,114400.0,114390.0,1.53268045]
[1759300523247,0.11840547,114400.0,114390.0,1.53268045]
[1759300524463,0.12040547,114400.0,114390.0,0.46560045]
[1759300524629,0.12358547,114400.0,114390.0,1.07820045]
[1759300524862,0.12358547,114400.0,114390.0,1.53264045]
[1759300525211,0.12358547,114400.0,114390.0,0.46560045]
[1759300525617,0.12358547,114400.0,114390.0,1.53264045]
[1759300526235,0.12358547,114400.0,114390.0,1.59551972]
[1759300528642,0.29841064,114400.0,114390.0,0.52847972]
[1759300528856,0.29841064,114400.0,114390.0,1.53264045]
[1759300529094,0.29841064,114400.0,114390.0,1.59551972]
[1759300529726,0.12358547,114400.0,114390.0,1.59551972]
[1759300530377,0.29841064,114400.0,114390.0,1.59551972]
[1759300532884,0.12358547,114400.0,114390.0,1.59551972]
[1759300536589,0.29841064,114400.0,114390.0,1.59551972]
[1759300539069,0.12358547,114400.0,114390.0,1.59551972]
[1759300539516,0.29841064,114400.0,114390.0,1.59551972]
[1759300541669,0.29841064,114400.0,114390.0,0.52847972]
[1759300541877,0.29841064,114400.0,114390.0,1.59547972]
[1759300542893,0.12358547,114400.0,114390.0,1.59547972]
[1759300543097,0.29841064,114400.0,114390.0,1.59547972]
[1759300544753,0.29841064,114400.0,114390.0,0.52847972]
[1759300544968,0.29841064,114400.0,114390.0,1.59547972]
[1759300545910,0.29841064,114400.0,114390.0,0.89203972]
[1759300546160,0.29841064,114400.0,114390.0,1.59547972]
[1759300546592,0.32464885,114400.0,114390.0,1.59547972]
[1759300547295,0.32464885,114400.0,114390.0,0.35363927]
[1759300547504,0.32464885,114400.0,114390.0,1.42059927]
[1759300548133,0.32464885,114400.0,114390.0,0.35363927]
[1759300548331,0.32464885,114400.0,114390.0,1.42059927]
[1759300548691,0.32464885,114400.0,114390.0,1.13651825]
[1759300549684,0.32464885,114400.0,114390.0,1.3113587]
[1759300550575,0.32464885,114400.0,114390.0,1.13651825]
[1759300553113,0.32464885,114400.0,114390.0,1.3113587]
[1759300554432,0.33280817,114400.0,114390.0,0.06955825]
[1759300554658,0.37927668,114400.0,114390.0,0.77295825]
[1759300554884,0.71927668,114400.0,114390.0,0.77295825]
[1759300556258,0.71327668,114400.0,114390.0,0.76895825]
[1759300556597,0.71927668,114400.0,114390.0,0.76995825]
[1759300557211,0.73627668,114400.0,114390.0,0.77095825]
[1759300557422,0.73027668,114400.0,114390.0,0.76995825]
[1759300557698,0.74727668,114400.0,114390.0,0.76995825]
[1759300564134,0.74727668,114400.0,114390.0,0.06365825]
[1759300564350,0.74727668,114400.0,114390.0,0.76709825]
[1759300568703,0.73096007,114400.0,114390.0,0.76709825]
[1759300569050,0.73096007,114400.0,114390.0,1.13073825]
[1759300569704,0.73096007,114400.0,114390.0,0.06365825]
[1759300569897,0.73096007,114400.0,114390.0,0.76709825]
[1759300570325,0.73096007,114400.0,114390.0,0.06365825]
[1759300570525,0.73096007,114400.0,114390.0,0.76709825]
[1759300571156,0.34746885,114400.0,114390.0,0.76709825]
[1759300571535,0.34945885,114400.0,114390.0,0.76709825]
[1759300571738,0.35263885,114400.0,114390.0,0.76709825]
[1759300572154,0.34746885,114400.0,114390.0,0.9419387]
[1759300572319,0.28723064,114400.0,114390.0,0.9409387]
[1759300572737,0.31347018,114400.0,114390.0,0.9409387]
[1759300573072,0.34247018,114400.0,114390.0,0.9439387]
[1759300573312,0.31347018,114400.0,114390.0,0.9409387]
[1759300573944,0.13864501,114400.0,114390.0,0.9409387]
[1759300574353,0.31347018,114400.0,114390.0,0.9409387]
[1759300574770,0.31864018,114400.0,114390.0,0.06265825]
[1759300574971,0.31864018,114400.0,114390.0,0.88081825]
[1759300575098,0.31864018,114400.0,114390.0,1.12973825]
[1759300575294,0.31864018,114400.0,114390.0,1.03885825]
[1759300575535,0.31864018,114400.0,114390.0,1.12973825]
[1759300576146,0.31864018,114400.0,114390.0,0.67521825]
[1759300576363,0.31864018,114400.0,114390.0,1.12973825]
[1759300576568,0.31864018,114400.0,114390.0,0.06265825]
[1759300576872,0.31864018,114400.0,114390.0,1.12961825]
[1759300578124,0.34879208,114400.0,114390.0,1.12961825]
[1759300578332,0.35692975,114400.0,114390.0,1.12961825]
[1759300578968,0.35175975,114400.0,114390.0,0.06265825]
[1759300579182,0.34856208,114400.0,114390.0,1.12961825]
[1759300579710,0.36456208,114400.0,114390.0,1.13161825]
[1759300579918,0.38056208,114400.0,114390.0,1.13361825]
[1759300581626,0.34547018,114400.0,114390.0,1.13361825]
[1759300582157,0.35063018,114400.0,114390.0,1.13361825]
[1759300584297,0.34745018,114400.0,114390.0,1.13361825]
[1759300584484,0.34547018,114400.0,114390.0,1.13361825]
[1759300585362,0.34745018,114400.0,114390.0,1.13361825]
[1759300585569,0.17064501,114400.0,114390.0,1.3084587]
[1759300586030,0.14440547,114400.0,114390.0,0.2414987]
[1759300586227,0.17064363,114400.0,114390.0,1.3084587]
[1759300586779,0.17064363,114400.0,114390.0,0.2414987]
[1759300586966,0.17064363,114400.0,114390.0,1.3084587]
[1759300587926,0.17064363,114400.0,114390.0,1.3084187]
[1759300589782,0.17064363,114400.0,114390.0,1.2175387]
[1759300589977,0.17064363,114400.0,114390.0,0.2414987]
[1759300590219,0.17064363,114400.0,114390.0,1.3084187]
[1759300592870,0.14440547,114400.0,114390.0,0.2414987]
[1759300593080,0.14440547,114400.0,114390.0,1.3084187]
[1759300593389,0.14440547,114400.0,114390.0,0.2414987]
[1759300593532,0.14440547,114400.0,114390.0,1.3084187]
[1759300595782,0.14440547,114400.0,114390.0,0.2414987]
[1759300595984,0.14440547,114400.0,114390.0,1.3082987]
[1759300596673,0.11240547,114400.0,114390.0,1.3042987]
[1759300596898,0.11240547,114400.0,114390.0,0.2374987]
[1759300597124,0.11240547,114400.0,114390.0,1.3042987]
[1759300601264,0.28723064,114400.0,114390.0,1.3042987]
[1759300601464,0.11438547,114400.0,114390.0,1.2134187]
[1759300601823,0.11756547,114400.0,114390.0,0.2374987]
[1759300602028,0.11756547,114400.0,114390.0,1.3042987]
[1759300602424,0.11756547,114400.0,114390.0,0.2374987]
[1759300602634,0.11438547,114400.0,114390.0,1.3042987]
[1759300603061,0.11756547,114400.0,114390.0,1.3042987]
[1759300603385,0.29239064,114400.0,114390.0,0.06265825]
[1759300603593,0.29239064,114400.0,114390.0,1.12941825]
[1759300604174,0.29239064,114400.0,114390.0,0.06265825]
[1759300604566,0.29239064,114400.0,114390.0,1.12941825]
[1759300605865,0.31439064,114400.0,114390.0,1.13341825]
[1759300606209,0.33639064,114400.0,114390.0,1.13741825]
[1759300606702,0.33639064,114400.0,114390.0,0.07065825]
[1759300606918,0.33639064,114400.0,114390.0,1.13741825]
[1759300607294,0.33321064,114400.0,114390.0,1.3122587]
[1759300607510,0.33123064,114400.0,114390.0,1.3122587]
[1759300607879,0.33321064,114400.0,114390.0,1.3122587]
[1759300613266,0.33123064,114400.0,114390.0,1.3122587]
[1759300617002,0.15640547,114400.0,114390.0,1.3122587]
[1759300617228,0.33123064,114400.0,114390.0,1.3122587]
[1759300617861,0.33123064,114400.0,114390.0,0.2454987]
[1759300618126,0.11240547,114400.0,114390.0,1.3042587]
[1759300618570,0.13440547,114400.0,114390.0,1.3092587]
[1759300618935,0.11240547,114400.0,114390.0,1.3042587]
[1759300620166,0.13440547,114400.0,114390.0,0.63253754]
[1759300620511,0.13440547,114400.0,114390.0,0.44034754]
[1759300620708,0.13440547,114400.0,114390.0,0.89478754]
[1759300621366,0.13440547,114400.0,114390.0,1.14350754]
[1759300626777,0.13440547,114400.0,114390.0,1.50706754]
[1759300629572,0.13440547,114400.0,114390.0,0.44034754]
[1759300629774,0.13440547,114400.0,114390.0,1.50702754]
[1759300633030,0.13440547,114400.0,114390.0,1.05258754]
[1759300633244,0.13440547,114400.0,114390.0,1.50702754]
[1759300639810,0.13440547,114400.0,114390.0,1.05258754]
[1759300640025,0.13440547,114400.0,114390.0,1.50702754]
[1759300640706,0.13440547,114400.0,114390.0,1.50698754]
[1759300641828,0.13440547,114400.0,114390.0,9.87204676]
[1759300642058,0.13440547,114400.0,114390.0,8.78034754]
[1759300642277,0.13440547,114400.0,114390.0,9.92558749]
[1759300642488,0.13440547,114400.0,114390.0,9.83470749]
[1759300642708,0.13440547,114400.0,114390.0,9.92558749]
[1759300642926,0.11240547,114400.0,114390.0,9.9223304]
[1759300643172,0.11240547,114400.0,114390.0,9.9263304]
[1759300643173,0.12840547,114400.0,114390.0,9.9263304]
[1759300643396,0.12840547,114400.0,114390.0,9.4678904]
[1759300643591,0.11240547,114400.0,114390.0,9.9223304]
[1759300643808,0.12840547,114400.0,114390.0,9.9263304]
[1759300644419,0.12840547,114400.0,114390.0,8.8596904]
[1759300644659,0.12840547,114400.0,114390.0,9.9263304]
[1759300645497,0.12840547,114400.0,114390.0,9.64268402]
[1759300645725,0.12840547,114400.0,114390.0,9.73892452]
[1759300646150,0.12840547,114400.0,114390.0,8.67228452]
[1759300646318,0.12840547,114400.0,114390.0,9.73884452]
[1759300648641,0.12840547,114400.0,114390.0,8.67228452]
[1759300648870,0.12840547,114400.0,114390.0,9.73880452]
[1759300649576,0.03902,114400.0,114390.0,9.73880452]
[1759300649928,0.03902,114400.0,114390.0,9.28440452]
[1759300650146,0.03902,114400.0,114390.0,9.73880452]
[1759300652874,0.03902,114400.0,114390.0,8.67228452]
[1759300653189,0.03902,114400.0,114390.0,9.73880452]
[1759300654926,0.03902,114400.0,114390.0,8.67228452]
[1759300655160,0.12840547,114400.0,114390.0,9.39932452]
[1759300655369,0.13352547,114400.0,114390.0,1.49020452]
[1759300655551,0.13352547,114400.0,114390.0,1.73876452]
[1759300655762,0.13042547,114400.0,114390.0,1.73876452]
[1759300655940,0.12840547,114400.0,114390.0,0.67228452]
[1759300656149,0.12840547,114400.0,114390.0,1.73876452]
[1759300656481,0.12840547,114400.0,114390.0,0.67228452]
[1759300656635,0.12840547,114400.0,114390.0,1.73876452]
[1759300657051,0.12840547,114400.0,114390.0,0.67228452]
[1759300657274,0.12840547,114400.0,114390.0,1.73876452]
[1759300657719,0.12840547,114400.0,114390.0,0.67228452]
[1759300657921,0.12840547,114400.0,114390.0,1.73876452]
[1759300658715,0.13042547,114400.0,114390.0,1.73876452]
[1759300658921,0.12840547,114400.0,114390.0,1.73876452]
[1759300664061,0.13352547,114400.0,114390.0,0.67228452]
[1759300664265,0.13352547,114400.0,114390.0,1.73876452]
[1759300664951,0.12840547,114400.0,114390.0,1.73876452]
[1759300665747,0.13042547,114400.0,114390.0,1.73876452]
[1759300665956,0.13352547,114400.0,114390.0,1.73876452]
[1759300666128,0.12840547,114400.0,114390.0,1.73876452]
[1759300667092,0.30835064,114400.0,114390.0,0.15744407]
[1759300667309,0.30835064,114400.0,114390.0,1.39872452]
[1759300669417,0.29235064,114400.0,114390.0,1.39472452]
[1759300669618,0.29235064,114400.0,114390.0,1.39972452]
[1759300669825,0.33235064,114400.0,114390.0,1.40472452]
[1759300674021,0.33235064,114400.0,114390.0,1.22988407]
[1759300674452,0.33235064,114400.0,114390.0,1.40472452]
[1759300676533,0.33235064,114400.0,114390.0,1.22988407]
[1759300678082,0.33235064,114400.0,114390.0,0.16344407]
[1759300678496,0.33235064,114400.0,114390.0,1.22996407]
[1759300679771,0.33235064,114400.0,114390.0,1.40480452]
[1759300680821,0.33235064,114400.0,114390.0,1.22996407]
[1759300683373,0.33235064,114400.0,114390.0,1.40480452]
[1759300685031,0.33235064,114400.0,114390.0,1.22996407]
[1759300686021,0.33235064,114400.0,114390.0,1.40480452]
[1759300686223,0.33235064,114400.0,114390.0,1.22996407]
[1759300688243,0.33235064,114400.0,114390.0,0.77552407]
[1759300688455,0.33235064,114400.0,114390.0,1.22996407]
[1759300691231,0.33235064,114400.0,114390.0,1.40480452]
[1759300696583,0.33235064,114400.0,114390.0,1.22992407]
[1759300697728,0.15240547,114400.0,114390.0,1.40476452]
[1759300698404,0.15240547,114400.0,114390.0,0.33828452]
[1759300698634,0.15240547,114400.0,114390.0,1.46763665]
[1759300699050,0.15240547,114400.0,114390.0,0.40115665]
[1759300699280,0.11240547,114400.0,114390.0,1.45763665]
[1759300701063,0.12940547,114400.0,114390.0,1.46263665]
[1759300701246,0.12940547,114400.0,114390.0,0.39615665]
[1759300701408,0.12940547,114400.0,114390.0,1.46263665]
[1759300702136,0.12940547,114400.0,114390.0,1.73976452]
[1759300702551,0.12940547,114400.0,114390.0,0.67328452]
[1759300702755,0.12940547,114400.0,114390.0,1.73976452]
[1759300705802,0.12940547,114400.0,114390.0,9.73976452]
[1759300706868,0.12940547,114400.0,114390.0,9.81822225]
[1759300707087,0.12940547,114400.0,114390.0,9.84445521]
[1759300708340,0.12940547,114400.0,114390.0,9.76599748]
[1759300709516,0.12940547,114400.0,114390.0,9.76587748]
[1759300710910,0.12940547,114400.0,114390.0,9.84433521]
[1759300711337,0.12940547,114400.0,114390.0,9.76587748]
[1759300711548,0.11240547,114400.0,114390.0,9.76087748]
[1759300712413,0.13040547,114400.0,114390.0,9.76487748]
[1759300713045,0.13040547,114400.0,114390.0,8.70251748]
[1759300713046,0.05702,114400.0,114390.0,8.70251748]
[1759300713230,0.05702,114400.0,114390.0,9.76883748]
[1759300713896,0.05702,114400.0,114390.0,9.31443748]
[1759300714107,0.05702,114400.0,114390.0,9.76883748]
[1759300715009,0.05702,114400.0,114390.0,8.70251748]
[1759300715219,0.05702,114400.0,114390.0,9.76883748]
[1759300715436,0.05702,114400.0,114390.0,9.67795748]
[1759300715648,0.05702,114400.0,114390.0,9.76883748]
[1759300715852,0.05702,114400.0,114390.0,9.56771071]
[1759300716321,0.05702,114400.0,114390.0,9.82996071]
[1759300718304,0.05702,114400.0,114390.0,8.76364071]
[1759300718530,0.05702,114400.0,114390.0,9.82996071]
[1759300718669,0.05702,114400.0,114390.0,8.76364071]
[1759300719087,0.05702,114400.0,114390.0,9.82996071]
[1759300719490,0.05702,114400.0,114390.0,9.82992071]
[1759300722903,0.05702,114400.0,114390.0,9.85498045]
[1759300723295,0.05702,114400.0,114390.0,9.79227918]
[1759300723513,0.02302,114400.0,114390.0,9.78427918]
[1759300723752,0.03502,114400.0,114390.0,9.78827918]
[1759300724164,0.04902,114400.0,114390.0,9.79227918]
[1759300725984,0.04902,114400.0,114390.0,9.87073691]
[1759300726838,0.04902,114400.0,114390.0,9.84555717]
[1759300727177,0.04902,114400.0,114390.0,8.70093944]
[1759300727431,0.04902,114400.0,114390.0,9.76709944]
[1759300734356,0.00257166,114400.0,114390.0,9.84561733]
[1759300734805,0.00257166,114400.0,114390.0,9.86880733]
[1759300736449,0.02637166,114400.0,114390.0,9.86880733]
[1759300736839,0.02637166,114400.0,114390.0,9.86876733]
[1759300740341,0.02637166,114400.0,114390.0,8.80264733]
[1759300740554,0.02637166,114400.0,114390.0,9.86876733]
[1759300741880,0.00013924,114410.0,114400.0,0.17482517]
[1759300742167,0.00013924,114410.0,114400.0,8.70282768]
[1759300742388,0.00013924,114410.0,114400.0,8.70853517]
[1759300742596,0.00013924,114410.0,114400.0,9.43549517]
[1759300742766,0.00013924,114410.0,114400.0,9.55256395]
[1759300743172,0.00013924,114410.0,114400.0,8.48648395]
[1759300743392,0.00013924,114410.0,114400.0,9.55256395]
[1759300743759,0.00213924,114410.0,114400.0,9.55856395]
[1759300743959,0.00413924,114410.0,114400.0,9.56456395]
[1759300744197,0.00413924,114410.0,114400.0,9.64308184]
[1759300744603,0.00413924,114410.0,114400.0,8.57700184]
[1759300744954,0.00413924,114410.0,114400.0,9.64300184]
[1759300745540,0.00413924,114410.0,114400.0,8.57700184]
[1759300745970,0.00413924,114410.0,114400.0,9.55216184]
[1759300746180,0.00413924,114410.0,114400.0,9.64300184]
[1759300746434,0.00413924,114410.0,114400.0,9.18872184]
[1759300746625,0.00413924,114410.0,114400.0,9.64300184]
[1759300748517,0.00629924,114410.0,114400.0,9.55216184]
[1759300748745,0.09568471,114410.0,114400.0,8.57700184]
[1759300748966,0.09867471,114410.0,114400.0,9.64300184]
[1759300749176,0.09867471,114410.0,114400.0,9.56448395]
[1759300749816,0.09467471,114410.0,114400.0,9.55248395]
[1759300750048,0.09467471,114410.0,114400.0,8.48648395]
[1759300750238,0.09467471,114410.0,114400.0,9.55248395]
[1759300751198,0.09467471,114410.0,114400.0,9.09820395]
[1759300751428,0.09467471,114410.0,114400.0,9.55248395]
[1759300752036,0.09467471,114410.0,114400.0,8.56500184]
[1759300752250,0.09467471,114410.0,114400.0,1.63100184]
[1759300753007,0.09467471,114410.0,114400.0,1.55248395]
[1759300753398,0.09467471,114410.0,114400.0,1.63100184]
[1759300754953,0.00013924,114410.0,114400.0,9.63100184]
[1759300756960,0.00213924,114410.0,114400.0,9.63600184]
[1759300757207,0.00213924,114410.0,114400.0,9.63100184]
[1759300757886,0.00413924,114410.0,114400.0,9.63600184]
[1759300761452,0.00905924,114410.0,114400.0,9.63596184]
[1759300761884,0.00905924,114410.0,114400.0,9.54512184]
[1759300762094,0.00905924,114410.0,114400.0,9.63596184]
[1759300768168,0.00612924,114410.0,114400.0,9.63596184]
[1759300769513,0.00413924,114410.0,114400.0,9.63596184]
[1759300769715,0.00612924,114410.0,114400.0,9.63596184]
[1759300769931,0.00905924,114410.0,114400.0,9.63592184]
[1759300771170,0.00905924,114410.0,114400.0,8.57000184]
[1759300771312,0.00905924,114410.0,114400.0,9.63592184]
[1759300771533,0.00905924,114410.0,114400.0,8.57000184]
[1759300771934,0.09844471,114410.0,114400.0,9.38772184]
[1759300772185,0.09844471,114410.0,114400.0,9.55740395]
[1759300772417,0.09844471,114410.0,114400.0,9.63592184]
[1759300772614,0.09352471,114410.0,114400.0,9.63592184]
[1759300773223,0.09551471,114410.0,114400.0,9.63592184]
[1759300773435,0.09352471,114410.0,114400.0,9.63592184]
[1759300783259,0.09352471,114410.0,114400.0,8.57000184]
[1759300783646,0.09352471,114410.0,114400.0,9.63592184]
[1759300783866,0.09844471,114410.0,114400.0,9.63592184]
[1759300784081,0.09352471,114410.0,114400.0,9.63592184]
[1759300791467,0.09128103,114410.0,114400.0,9.63592184]
[1759300791685,0.00189556,114410.0,114400.0,9.63592184]
[1759300794137,0.00189556,114410.0,114400.0,9.39726659]
[1759300794344,0.00189556,114410.0,114400.0,9.03925387]
[1759300794694,0.00189556,114410.0,114400.0,9.49353387]
[1759300800164,0.00189556,114410.0,114400.0,9.88873255]
[1759300800372,0.00189556,114410.0,114400.0,9.94220366]
[1759300801017,0.00189556,114410.0,114400.0,8.84617176]
[1759300801174,0.00189556,114410.0,114400.0,9.83353387]
[1759300802003,0.0238,114420.0,114410.0,0.17480989]
[1759300802207,0.38329211,114440.0,114430.0,0.17477934]
[1759300802404,0.28925657,114440.0,114430.0,0.83977934]
[1759300802634,0.28925657,114440.0,114430.0,0.86344934]
[1759300802978,0.28925657,114440.0,114430.0,0.88967736]
[1759300803568,0.28925657,114440.0,114430.0,0.89167736]
[1759300803783,0.29625657,114440.0,114430.0,0.89167736]
[1759300803993,0.29625657,114440.0,114430.0,9.23167736]
[1759300804530,0.08194852,114440.0,114430.0,9.33324203]
[1759300804753,1e-08,114440.0,114430.0,9.24735118]
[1759300804970,1e-08,114440.0,114430.0,9.32586907]
[1759300805952,0.00200001,114440.0,114430.0,9.30655393]
[1759300806158,1e-08,114440.0,114430.0,9.25233732]
[1759300806618,0.02311,114450.0,114440.0,0.54491596]
[1759300806849,0.0004,114460.0,114450.0,0.17474879]
[1759300807049,0.00086518,114460.0,114450.0,8.74881879]
[1759300807257,0.00086518,114460.0,114450.0,9.11248879]
[1759300807472,0.00086518,114460.0,114450.0,8.86436879]
[1759300807672,0.00086518,114460.0,114450.0,9.95634613]
[1759300808779,0.00486518,114460.0,114450.0,9.95734613]
[1759300809214,0.00686518,114460.0,114450.0,9.95834613]
[1759300809430,0.00686518,114460.0,114450.0,9.98339291]
[1759300809636,0.00686518,114460.0,114450.0,9.95834613]
[1759300809855,0.00686518,114460.0,114450.0,8.89258613]
[1759300810086,0.00686518,114460.0,114450.0,9.95842613]
[1759300811148,0.00686518,114460.0,114450.0,10.03862481]
[1759300811364,0.00686518,114460.0,114450.0,8.97278481]
[1759300811575,0.00686518,114460.0,114450.0,9.67530481]
[1759300812022,0.00686518,114460.0,114450.0,9.65025803]
[1759300812430,0.00686518,114460.0,114450.0,8.94773803]
[1759300812635,0.00686518,114460.0,114450.0,9.19605803]
[1759300812847,0.00686518,114460.0,114450.0,8.94773803]
[1759300813081,0.00686518,114460.0,114450.0,9.17101803]
[1759300813513,0.00686518,114460.0,114450.0,8.92273803]
[1759300813729,0.00686518,114460.0,114450.0,9.17101803]
[1759300814016,0.00686518,114460.0,114450.0,8.92273803]
[1759300814244,0.00686518,114460.0,114450.0,9.17161803]
[1759300814470,0.00686518,114460.0,114450.0,8.92273803]